[Event "Titled Tuesday Blitz June 27 Early 2023"]
[White "Taspinar, Yanki"]
[Black "Harshavardhan G B"]
[WhiteFideId "34561188"]
[BlackFideId "25059009"]
[WhiteElo "2668"]
[BlackElo "2810"]
[Result "0-1"]
[Round "11"]
[TimeControl "180+2"]
[Date "2023.06.27"]
[WhiteClock "0:00:00"]
[BlackClock "0:01:33"]
[Board "24"]

1. Nf3 {[%clk 0:03:00]}  Nf6 {[%clk 0:02:58]} 2. g3 {[%clk 0:03:01]}  g6 {[%clk 0:02:58]} 3. Bg2 {[%clk 0:03:00]}  Bg7 {[%clk 0:02:59]} 4. O-O {[%clk 0:02:59]}  O-O {[%clk 0:02:59]} 5. d4 {[%clk 0:02:58]}  d6 {[%clk 0:03:00]} 6. b3 {[%clk 0:02:56]}  e5 {[%clk 0:02:57]} 7. dxe5 {[%clk 0:02:55]}  Nfd7 {[%clk 0:02:58]} 8. Bb2 {[%clk 0:02:55]}  Nc6 {[%clk 0:02:58]} 9. Nbd2 {[%clk 0:02:55]}  dxe5 {[%clk 0:02:57]} 10. e4 {[%clk 0:02:45]}  Qe7 {[%clk 0:02:54]} 11. a3 {[%clk 0:02:38]}  Rd8 {[%clk 0:02:54]} 12. Qe2 {[%clk 0:02:36]}  Nf8 {[%clk 0:02:53]} 13. Rad1 {[%clk 0:02:31]}  a5 {[%clk 0:02:49]} 14. h3 {[%clk 0:02:29]}  a4 {[%clk 0:02:48]} 15. b4 {[%clk 0:02:29]}  Be6 {[%clk 0:02:49]} 16. Nc4 {[%clk 0:02:24]}  Nd4 {[%clk 0:02:46]} 17. Nxd4 {[%clk 0:02:19]}  exd4 {[%clk 0:02:47]} 18. e5 {[%clk 0:02:19]}  Bxc4 {[%clk 0:02:32]} 19. Qxc4 {[%clk 0:02:18]}  Bxe5 {[%clk 0:02:33]} 20. Bxb7 {[%clk 0:02:15]}  Rab8 {[%clk 0:02:32]} 21. Bc6 {[%clk 0:02:14]}  h5 {[%clk 0:02:31]} 22. Bxd4 {[%clk 0:02:08]}  h4 {[%clk 0:02:23]} 23. Bxe5 {[%clk 0:02:07]}  Qxe5 {[%clk 0:02:24]} 24. Rxd8 {[%clk 0:01:55]}  Rxd8 {[%clk 0:02:25]} 25. Qxh4 {[%clk 0:01:56]}  Rd4 {[%clk 0:02:25]} 26. g4 {[%clk 0:01:52]}  Ne6 {[%clk 0:02:25]} 27. Qg3 {[%clk 0:01:40]}  Nf4 {[%clk 0:02:24]} 28. Qe3 {[%clk 0:01:40]}  Qd6 {[%clk 0:02:20]} 29. Bg2 {[%clk 0:01:35]}  Rc4 {[%clk 0:02:18]} 30. c3 {[%clk 0:01:32]}  Rxc3 {[%clk 0:02:16]} 31. Qe8+ {[%clk 0:01:26]}  Kg7 {[%clk 0:02:16]} 32. Qxa4 {[%clk 0:01:10]}  Qd3 {[%clk 0:02:15]} 33. Qd1 {[%clk 0:00:54]}  Qc4 {[%clk 0:02:03]} 34. Qd2 {[%clk 0:00:38]}  Rc2 {[%clk 0:01:55]} 35. Qe3 {[%clk 0:00:34]}  Rc3 {[%clk 0:01:52]} 36. Qe5+ {[%clk 0:00:34]}  Kh7 {[%clk 0:01:49]} 37. Rd1 {[%clk 0:00:27]}  Rxh3 {[%clk 0:01:31]} 38. Bxh3 {[%clk 0:00:09]}  Nxh3+ {[%clk 0:01:32]} 39. Kg2 {[%clk 0:00:08]}  Qxg4+ {[%clk 0:01:31]} 40. Qg3 {[%clk 0:00:09]}  Nf4+ {[%clk 0:01:30]} 41. Kh2 {[%clk 0:00:09]}  Qh5+ {[%clk 0:01:30]} 42. Kg1 {[%clk 0:00:06]}  Qxd1+ {[%clk 0:01:31]} 43. Kh2 {[%clk 0:00:07]}  Qh5+ {[%clk 0:01:31]} 44. Kg1 {[%clk 0:00:08]}  Ne2+ {[%clk 0:01:32]} 45. Kg2 {[%clk 0:00:00]}  Nxg3 {[%clk 0:01:33]} 0-1


[Site "https://www.chess.com"]

[Event "Titled Tuesday Blitz June 27 Early 2023"]
[White "Morefield, Jason"]
[Black "Weishaeutel, Moritz"]
[WhiteFideId "30920825"]
[BlackFideId "12967300"]
[WhiteElo "2757"]
[BlackElo "2658"]
[Result "1-0"]
[Round "11"]
[TimeControl "180+2"]
[Date "2023.06.27"]
[WhiteClock "0:00:04"]
[BlackClock "0:00:11"]
[Board "26"]

1. e4 {[%clk 0:03:00]}  e5 {[%clk 0:03:00]} 2. Nf3 {[%clk 0:03:01]}  Nf6 {[%clk 0:03:01]} 3. Nxe5 {[%clk 0:03:01]}  Nxe4 {[%clk 0:03:02]} 4. Qe2 {[%clk 0:02:59]}  Qe7 {[%clk 0:03:02]} 5. Qxe4 {[%clk 0:02:59]}  d6 {[%clk 0:03:02]} 6. d4 {[%clk 0:03:00]}  dxe5 {[%clk 0:03:03]} 7. dxe5 {[%clk 0:03:00]}  Nc6 {[%clk 0:03:03]} 8. Nc3 {[%clk 0:02:57]}  Qxe5 {[%clk 0:03:03]} 9. Qxe5+ {[%clk 0:02:57]}  Nxe5 {[%clk 0:03:03]} 10. Nb5 {[%clk 0:02:53]}  Bb4+ {[%clk 0:03:02]} 11. Bd2 {[%clk 0:02:51]}  Bxd2+ {[%clk 0:03:02]} 12. Kxd2 {[%clk 0:02:52]}  Kd8 {[%clk 0:03:00]} 13. Re1 {[%clk 0:02:49]}  Nd7 {[%clk 0:02:53]} 14. Bc4 {[%clk 0:02:46]}  Rf8 {[%clk 0:02:51]} 15. Kc3 {[%clk 0:02:44]}  a6 {[%clk 0:02:51]} 16. Nd4 {[%clk 0:02:41]}  Nb6 {[%clk 0:02:49]} 17. Rd1 {[%clk 0:02:38]}  Bd7 {[%clk 0:02:37]} 18. Rhe1 {[%clk 0:02:30]}  Nxc4 {[%clk 0:02:23]} 19. Kxc4 {[%clk 0:02:30]}  Re8 {[%clk 0:02:24]} 20. Nf3 {[%clk 0:02:02]}  Rxe1 {[%clk 0:02:12]} 21. Rxe1 {[%clk 0:01:59]}  Be6+ {[%clk 0:02:09]} 22. Kc5 {[%clk 0:01:56]}  Ke7 {[%clk 0:02:06]} 23. c4 {[%clk 0:01:30]}  Rd8 {[%clk 0:02:03]} 24. a4 {[%clk 0:01:14]}  Rd3 {[%clk 0:01:44]} 25. Re3 {[%clk 0:00:51]}  Rd1 {[%clk 0:01:40]} 26. b3 {[%clk 0:00:41]}  f6 {[%clk 0:01:28]} 27. a5 {[%clk 0:00:33]}  Kd7 {[%clk 0:01:28]} 28. Re4 {[%clk 0:00:26]}  Ra1 {[%clk 0:01:21]} 29. b4 {[%clk 0:00:22]}  Ra2 {[%clk 0:01:20]} 30. Rd4+ {[%clk 0:00:20]}  Ke7 {[%clk 0:01:20]} 31. Rd2 {[%clk 0:00:20]}  Ra3 {[%clk 0:01:18]} 32. Nd4 {[%clk 0:00:11]}  Bf7 {[%clk 0:01:06]} 33. Nf5+ {[%clk 0:00:11]}  Ke6 {[%clk 0:01:02]} 34. Nxg7+ {[%clk 0:00:11]}  Ke5 {[%clk 0:01:02]} 35. Re2+ {[%clk 0:00:09]}  Kf4 {[%clk 0:01:01]} 36. Re7 {[%clk 0:00:07]}  Bg6 {[%clk 0:00:54]} 37. Ne6+ {[%clk 0:00:07]}  Kg4 {[%clk 0:00:50]} 38. Nxc7 {[%clk 0:00:07]}  Ra2 {[%clk 0:00:50]} 39. f3+ {[%clk 0:00:05]}  Kf4 {[%clk 0:00:50]} 40. Nd5+ {[%clk 0:00:05]}  Kf5 {[%clk 0:00:48]} 41. h4 {[%clk 0:00:04]}  h5 {[%clk 0:00:40]} 42. g3 {[%clk 0:00:04]}  Ra3 {[%clk 0:00:39]} 43. Ne3+ {[%clk 0:00:04]}  Rxe3 {[%clk 0:00:35]} 44. Rxe3 {[%clk 0:00:05]}  Bf7 {[%clk 0:00:34]} 45. Kd4 {[%clk 0:00:05]}  Kg6 {[%clk 0:00:32]} 46. b5 {[%clk 0:00:05]}  f5 {[%clk 0:00:31]} 47. bxa6 {[%clk 0:00:05]}  f4 {[%clk 0:00:32]} 48. gxf4 {[%clk 0:00:05]}  bxa6 {[%clk 0:00:33]} 49. Ke5 {[%clk 0:00:05]}  Kh6 {[%clk 0:00:32]} 50. c5 {[%clk 0:00:05]}  Be8 {[%clk 0:00:24]} 51. Kf6 {[%clk 0:00:05]}  Bb5 {[%clk 0:00:16]} 52. f5 {[%clk 0:00:05]}  Bc6 {[%clk 0:00:16]} 53. Re6 {[%clk 0:00:05]}  Bd7 {[%clk 0:00:16]} 54. c6 {[%clk 0:00:05]}  Bc8 {[%clk 0:00:14]} 55. Re8 {[%clk 0:00:04]}  Kh7 {[%clk 0:00:11]} 56. Rxc8 {[%clk 0:00:04]} 1-0


[Site "https://www.chess.com"]

[Event "Titled Tuesday Blitz June 27 Early 2023"]
[White "Hambleton, Aman"]
[Black "Ahmad, Khagan"]
[WhiteFideId "2606577"]
[BlackFideId "13431552"]
[WhiteElo "2706"]
[BlackElo "2633"]
[Result "0-1"]
[Round "11"]
[TimeControl "180+2"]
[Date "2023.06.27"]
[WhiteClock "0:00:00"]
[BlackClock "0:00:02"]
[Board "30"]

1. d4 {[%clk 0:03:00]}  Nf6 {[%clk 0:02:52]} 2. Bf4 {[%clk 0:03:00]}  d5 {[%clk 0:02:51]} 3. e3 {[%clk 0:03:00]}  c5 {[%clk 0:02:52]} 4. c3 {[%clk 0:03:00]}  Nc6 {[%clk 0:02:51]} 5. Nd2 {[%clk 0:02:59]}  Bf5 {[%clk 0:02:48]} 6. Qb3 {[%clk 0:02:57]}  Qc8 {[%clk 0:02:39]} 7. Ngf3 {[%clk 0:02:48]}  e6 {[%clk 0:02:39]} 8. Be2 {[%clk 0:02:47]}  Be7 {[%clk 0:02:37]} 9. O-O {[%clk 0:02:47]}  Nh5 {[%clk 0:02:37]} 10. Be5 {[%clk 0:02:44]}  f6 {[%clk 0:02:27]} 11. Bg3 {[%clk 0:02:44]}  Nxg3 {[%clk 0:02:23]} 12. hxg3 {[%clk 0:02:45]}  O-O {[%clk 0:02:24]} 13. Nh4 {[%clk 0:02:40]}  c4 {[%clk 0:02:24]} 14. Qd1 {[%clk 0:02:11]}  Qe8 {[%clk 0:02:07]} 15. b3 {[%clk 0:01:18]}  b5 {[%clk 0:01:58]} 16. a4 {[%clk 0:01:14]}  b4 {[%clk 0:01:54]} 17. Nxf5 {[%clk 0:01:08]}  exf5 {[%clk 0:01:50]} 18. bxc4 {[%clk 0:01:07]}  bxc3 {[%clk 0:01:48]} 19. cxd5 {[%clk 0:00:36]}  Nb4 {[%clk 0:01:46]} 20. d6 {[%clk 0:00:32]}  Bxd6 {[%clk 0:01:21]} 21. Qb3+ {[%clk 0:00:31]}  Kh8 {[%clk 0:01:19]} 22. Qxc3 {[%clk 0:00:30]}  Rc8 {[%clk 0:01:00]} 23. Nc4 {[%clk 0:00:16]}  Qe7 {[%clk 0:00:52]} 24. Qb3 {[%clk 0:00:12]}  Nd5 {[%clk 0:00:43]} 25. Bf3 {[%clk 0:00:04]}  Rb8 {[%clk 0:00:43]} 26. Qd1 {[%clk 0:00:01]}  Nc3 {[%clk 0:00:41]} 27. Qd2 {[%clk 0:00:01]}  Bb4 {[%clk 0:00:40]} 28. Qd3 {[%clk 0:00:02]}  Ne4 {[%clk 0:00:40]} 29. Rfc1 {[%clk 0:00:02]}  Rfd8 {[%clk 0:00:37]} 30. Rab1 {[%clk 0:00:02]}  a5 {[%clk 0:00:32]} 31. g4 {[%clk 0:00:02]}  g6 {[%clk 0:00:24]} 32. gxf5 {[%clk 0:00:02]}  gxf5 {[%clk 0:00:25]} 33. Qe2 {[%clk 0:00:02]}  Nc3 {[%clk 0:00:24]} 34. Rxc3 {[%clk 0:00:02]}  Bxc3 {[%clk 0:00:25]} 35. Rxb8 {[%clk 0:00:02]}  Rxb8 {[%clk 0:00:25]} 36. Qd3 {[%clk 0:00:02]}  Bb4 {[%clk 0:00:20]} 37. Qxf5 {[%clk 0:00:02]}  Bd6 {[%clk 0:00:18]} 38. g3 {[%clk 0:00:02]}  Bc7 {[%clk 0:00:17]} 39. Be4 {[%clk 0:00:02]}  Rg8 {[%clk 0:00:16]} 40. Nxa5 {[%clk 0:00:01]}  Rg5 {[%clk 0:00:16]} 41. Qc8+ {[%clk 0:00:02]}  Rg8 {[%clk 0:00:15]} 42. Qa6 {[%clk 0:00:01]}  Bxa5 {[%clk 0:00:12]} 43. Bd3 {[%clk 0:00:01]}  Bc7 {[%clk 0:00:11]} 44. Qc4 {[%clk 0:00:01]}  Bxg3 {[%clk 0:00:08]} 45. Kf1 {[%clk 0:00:02]}  Bd6 {[%clk 0:00:08]} 46. Qd5 {[%clk 0:00:02]}  Rg7 {[%clk 0:00:06]} 47. Qa8+ {[%clk 0:00:02]}  Rg8 {[%clk 0:00:07]} 48. Qd5 {[%clk 0:00:02]}  Rd8 {[%clk 0:00:07]} 49. Qf5 {[%clk 0:00:02]}  Qg7 {[%clk 0:00:06]} 50. a5 {[%clk 0:00:02]}  Qg6 {[%clk 0:00:06]} 51. Qb5 {[%clk 0:00:02]}  Qg5 {[%clk 0:00:05]} 52. Qb6 {[%clk 0:00:01]}  f5 {[%clk 0:00:05]} 53. a6 {[%clk 0:00:01]}  f4 {[%clk 0:00:05]} 54. a7 {[%clk 0:00:02]}  fxe3 {[%clk 0:00:04]} 55. Qc6 {[%clk 0:00:01]}  e2+ {[%clk 0:00:04]} 56. Kxe2 {[%clk 0:00:00]}  Qa5 {[%clk 0:00:02]} 0-1


[Site "https://www.chess.com"]

[Event "Titled Tuesday Blitz June 27 Early 2023"]
[White "Lavrik, Dmitry"]
[Black "Girya, Olga"]
[WhiteFideId "24113190"]
[BlackFideId "4195752"]
[WhiteElo "2705"]
[BlackElo "2625"]
[Result "0-1"]
[Round "11"]
[TimeControl "180+2"]
[Date "2023.06.27"]
[WhiteClock "0:00:01"]
[BlackClock "0:00:04"]
[Board "31"]

1. c4 {[%clk 0:03:00]}  Nf6 {[%clk 0:02:58]} 2. Nf3 {[%clk 0:03:00]}  e6 {[%clk 0:02:57]} 3. g3 {[%clk 0:02:58]}  d5 {[%clk 0:02:57]} 4. Bg2 {[%clk 0:02:58]}  Be7 {[%clk 0:02:58]} 5. O-O {[%clk 0:02:58]}  O-O {[%clk 0:02:58]} 6. b3 {[%clk 0:02:58]}  c5 {[%clk 0:02:46]} 7. cxd5 {[%clk 0:02:57]}  Nxd5 {[%clk 0:02:41]} 8. Bb2 {[%clk 0:02:57]}  Nc6 {[%clk 0:02:41]} 9. Nc3 {[%clk 0:02:35]}  Bf6 {[%clk 0:02:38]} 10. Qc2 {[%clk 0:02:26]}  b6 {[%clk 0:02:18]} 11. Nxd5 {[%clk 0:02:18]}  exd5 {[%clk 0:02:18]} 12. d4 {[%clk 0:02:17]}  Nxd4 {[%clk 0:02:10]} 13. Nxd4 {[%clk 0:02:06]}  cxd4 {[%clk 0:02:10]} 14. Rfd1 {[%clk 0:02:07]}  d3 {[%clk 0:01:23]} 15. Rxd3 {[%clk 0:01:42]}  Bf5 {[%clk 0:01:22]} 16. e4 {[%clk 0:01:42]}  Bg6 {[%clk 0:01:14]} 17. Qe2 {[%clk 0:01:24]}  Re8 {[%clk 0:01:10]} 18. Re1 {[%clk 0:00:46]}  Bxe4 {[%clk 0:00:59]} 19. Bxe4 {[%clk 0:00:34]}  Rxe4 {[%clk 0:00:58]} 20. Qxe4 {[%clk 0:00:35]}  dxe4 {[%clk 0:00:58]} 21. Rxd8+ {[%clk 0:00:36]}  Rxd8 {[%clk 0:00:54]} 22. Bxf6 {[%clk 0:00:35]}  gxf6 {[%clk 0:00:54]} 23. Rxe4 {[%clk 0:00:35]}  Rd2 {[%clk 0:00:52]} 24. Ra4 {[%clk 0:00:32]}  a5 {[%clk 0:00:50]} 25. Kg2 {[%clk 0:00:24]}  Kg7 {[%clk 0:00:49]} 26. Kf3 {[%clk 0:00:24]}  h5 {[%clk 0:00:46]} 27. h4 {[%clk 0:00:23]}  Kg6 {[%clk 0:00:45]} 28. Ke3 {[%clk 0:00:24]}  Rb2 {[%clk 0:00:45]} 29. f3 {[%clk 0:00:19]}  Rg2 {[%clk 0:00:38]} 30. g4 {[%clk 0:00:18]}  Rh2 {[%clk 0:00:36]} 31. Rc4 {[%clk 0:00:11]}  Rxh4 {[%clk 0:00:31]} 32. gxh5+ {[%clk 0:00:08]}  Rxh5 {[%clk 0:00:31]} 33. Rc6 {[%clk 0:00:08]}  Rb5 {[%clk 0:00:30]} 34. Kd4 {[%clk 0:00:08]}  Kf5 {[%clk 0:00:27]} 35. Kc4 {[%clk 0:00:05]}  Rb4+ {[%clk 0:00:20]} 36. Kc3 {[%clk 0:00:05]}  Ke5 {[%clk 0:00:18]} 37. a3 {[%clk 0:00:05]}  Rb5 {[%clk 0:00:18]} 38. Kc4 {[%clk 0:00:05]}  Rd5 {[%clk 0:00:07]} 39. Rxb6 {[%clk 0:00:05]}  Rd4+ {[%clk 0:00:07]} 40. Kc3 {[%clk 0:00:03]}  Rf4 {[%clk 0:00:07]} 41. Rb5+ {[%clk 0:00:03]}  Kd6 {[%clk 0:00:07]} 42. Rxa5 {[%clk 0:00:04]}  Rxf3+ {[%clk 0:00:08]} 43. Kc4 {[%clk 0:00:04]}  f5 {[%clk 0:00:08]} 44. Ra8 {[%clk 0:00:01]}  f4 {[%clk 0:00:08]} 45. Rd8+ {[%clk 0:00:02]}  Ke5 {[%clk 0:00:05]} 46. Rd1 {[%clk 0:00:02]}  Rf2 {[%clk 0:00:05]} 47. a4 {[%clk 0:00:03]}  f3 {[%clk 0:00:05]} 48. a5 {[%clk 0:00:03]}  Ra2 {[%clk 0:00:05]} 49. b4 {[%clk 0:00:03]}  f2 {[%clk 0:00:05]} 50. Kb3 {[%clk 0:00:02]}  Re2 {[%clk 0:00:05]} 51. Rg1 {[%clk 0:00:01]}  fxg1=Q {[%clk 0:00:04]} 0-1


[Site "https://www.chess.com"]

[Event "Titled Tuesday Blitz June 27 Early 2023"]
[White "Jakubowski, Krzysztof"]
[Black "whiteglovethief"]
[WhiteFideId "1112848"]
[WhiteElo "2644"]
[BlackElo "2484"]
[Result "1/2-1/2"]
[Round "11"]
[TimeControl "180+2"]
[Date "2023.06.27"]
[WhiteClock "0:00:02"]
[BlackClock "0:00:31"]
[Board "33"]

1. e4 {[%clk 0:03:00]}  e6 {[%clk 0:02:56]} 2. d3 {[%clk 0:02:56]}  c5 {[%clk 0:02:55]} 3. g3 {[%clk 0:02:55]}  Nc6 {[%clk 0:02:55]} 4. Bg2 {[%clk 0:02:54]}  g6 {[%clk 0:02:55]} 5. h4 {[%clk 0:02:50]}  h6 {[%clk 0:02:55]} 6. Nf3 {[%clk 0:02:49]}  Bg7 {[%clk 0:02:55]} 7. c3 {[%clk 0:02:46]}  Nge7 {[%clk 0:02:55]} 8. Be3 {[%clk 0:02:44]}  d6 {[%clk 0:02:55]} 9. O-O {[%clk 0:02:40]}  b6 {[%clk 0:02:54]} 10. d4 {[%clk 0:02:37]}  cxd4 {[%clk 0:02:53]} 11. cxd4 {[%clk 0:02:36]}  O-O {[%clk 0:02:52]} 12. Qd2 {[%clk 0:02:35]}  Kh7 {[%clk 0:02:50]} 13. Nc3 {[%clk 0:02:31]}  Ba6 {[%clk 0:02:48]} 14. Rfe1 {[%clk 0:02:30]}  Rc8 {[%clk 0:02:49]} 15. Rac1 {[%clk 0:02:27]}  d5 {[%clk 0:02:49]} 16. e5 {[%clk 0:02:26]}  Nf5 {[%clk 0:02:49]} 17. Bf4 {[%clk 0:02:24]}  Na5 {[%clk 0:02:46]} 18. b3 {[%clk 0:02:23]}  Qe7 {[%clk 0:02:44]} 19. Bh3 {[%clk 0:02:14]}  Nc6 {[%clk 0:02:26]} 20. Nd1 {[%clk 0:01:54]}  Qb4 {[%clk 0:02:20]} 21. Bxf5 {[%clk 0:01:41]}  gxf5 {[%clk 0:02:19]} 22. Qe3 {[%clk 0:01:12]}  Ne7 {[%clk 0:01:51]} 23. Kg2 {[%clk 0:00:35]}  Rxc1 {[%clk 0:01:51]} 24. Qxc1 {[%clk 0:00:35]}  Rc8 {[%clk 0:01:52]} 25. Qb2 {[%clk 0:00:35]}  Bd3 {[%clk 0:01:47]} 26. Bd2 {[%clk 0:00:30]}  Qb5 {[%clk 0:01:38]} 27. Nc3 {[%clk 0:00:29]}  Qa6 {[%clk 0:01:37]} 28. Kh2 {[%clk 0:00:28]}  Be4 {[%clk 0:01:36]} 29. Ng1 {[%clk 0:00:27]}  Nc6 {[%clk 0:01:34]} 30. f3 {[%clk 0:00:24]}  Nxd4 {[%clk 0:01:17]} 31. fxe4 {[%clk 0:00:23]}  dxe4 {[%clk 0:01:04]} 32. Bf4 {[%clk 0:00:20]}  Qa5 {[%clk 0:01:01]} 33. Rc1 {[%clk 0:00:19]}  Bxe5 {[%clk 0:00:59]} 34. Qd2 {[%clk 0:00:12]}  Nf3+ {[%clk 0:00:52]} 35. Nxf3 {[%clk 0:00:11]}  Bxc3 {[%clk 0:00:52]} 36. Qd7 {[%clk 0:00:10]}  Rf8 {[%clk 0:00:44]} 37. Qe7 {[%clk 0:00:05]}  Bb4 {[%clk 0:00:35]} 38. Qf6 {[%clk 0:00:04]}  exf3 {[%clk 0:00:32]} 39. Qxh6+ {[%clk 0:00:04]}  Kg8 {[%clk 0:00:32]} 40. Qg5+ {[%clk 0:00:04]}  Kh7 {[%clk 0:00:32]} 41. Qh5+ {[%clk 0:00:04]}  Kg8 {[%clk 0:00:32]} 42. Qg5+ {[%clk 0:00:02]}  Kh7 {[%clk 0:00:31]} 43. Qh6+ {[%clk 0:00:02]}  Kg8 {[%clk 0:00:31]} 44. Qg5+ {[%clk 0:00:02]} 1/2-1/2


[Site "https://www.chess.com"]

[Event "Titled Tuesday Blitz June 27 Early 2023"]
[White "Panesar Vedant"]
[Black "Mamedov, Edgar"]
[WhiteFideId "35033018"]
[BlackFideId "13739980"]
[WhiteElo "2730"]
[BlackElo "2569"]
[Result "1-0"]
[Round "11"]
[TimeControl "180+2"]
[Date "2023.06.27"]
[WhiteClock "0:00:06"]
[BlackClock "0:00:00"]
[Board "38"]

1. e4 {[%clk 0:03:00]}  c5 {[%clk 0:02:59]} 2. Nf3 {[%clk 0:02:58]}  e6 {[%clk 0:02:57]} 3. d4 {[%clk 0:02:58]}  cxd4 {[%clk 0:02:57]} 4. Nxd4 {[%clk 0:02:59]}  Nf6 {[%clk 0:02:57]} 5. Nc3 {[%clk 0:02:59]}  Nc6 {[%clk 0:02:58]} 6. a3 {[%clk 0:03:00]}  Be7 {[%clk 0:02:57]} 7. Be3 {[%clk 0:02:53]}  O-O {[%clk 0:02:55]} 8. f4 {[%clk 0:02:52]}  e5 {[%clk 0:02:51]} 9. Nxc6 {[%clk 0:02:38]}  dxc6 {[%clk 0:02:50]} 10. f5 {[%clk 0:02:36]}  b5 {[%clk 0:02:49]} 11. Qf3 {[%clk 0:02:32]}  a5 {[%clk 0:02:47]} 12. g4 {[%clk 0:02:17]}  Nd7 {[%clk 0:02:44]} 13. Bd3 {[%clk 0:02:09]}  Bh4+ {[%clk 0:02:42]} 14. Ke2 {[%clk 0:02:07]}  Bb7 {[%clk 0:02:31]} 15. Rag1 {[%clk 0:02:02]}  b4 {[%clk 0:02:30]} 16. Nd1 {[%clk 0:01:42]}  f6 {[%clk 0:02:17]} 17. Nf2 {[%clk 0:01:16]}  bxa3 {[%clk 0:02:11]} 18. bxa3 {[%clk 0:01:15]}  Qe7 {[%clk 0:02:05]} 19. Rb1 {[%clk 0:00:59]}  Ba6 {[%clk 0:01:57]} 20. Bxa6 {[%clk 0:00:57]}  Rxa6 {[%clk 0:01:58]} 21. Rb7 {[%clk 0:00:57]}  Qf7 {[%clk 0:01:51]} 22. Nd3 {[%clk 0:00:50]}  Rd8 {[%clk 0:01:34]} 23. Rd1 {[%clk 0:00:36]}  Qc4 {[%clk 0:01:23]} 24. Rd2 {[%clk 0:00:36]}  Bg5 {[%clk 0:01:11]} 25. Bxg5 {[%clk 0:00:35]}  fxg5 {[%clk 0:01:11]} 26. Kd1 {[%clk 0:00:35]}  Raa8 {[%clk 0:01:04]} 27. Qe3 {[%clk 0:00:27]}  Nf6 {[%clk 0:01:01]} 28. Qxg5 {[%clk 0:00:23]}  Rd7 {[%clk 0:00:48]} 29. Rxd7 {[%clk 0:00:23]}  Nxd7 {[%clk 0:00:49]} 30. Qe3 {[%clk 0:00:15]}  Rb8 {[%clk 0:00:46]} 31. g5 {[%clk 0:00:14]}  Rb1+ {[%clk 0:00:44]} 32. Ke2 {[%clk 0:00:14]}  Nc5 {[%clk 0:00:31]} 33. Qxc5 {[%clk 0:00:11]}  Qxe4+ {[%clk 0:00:31]} 34. Qe3 {[%clk 0:00:07]}  Qh1 {[%clk 0:00:27]} 35. Qxe5 {[%clk 0:00:04]}  Qf1+ {[%clk 0:00:22]} 36. Ke3 {[%clk 0:00:04]}  Qg1+ {[%clk 0:00:19]} 37. Rf2 {[%clk 0:00:05]}  Qxg5+ {[%clk 0:00:16]} 38. Kd4 {[%clk 0:00:05]}  Qd8+ {[%clk 0:00:15]} 39. Kc4 {[%clk 0:00:06]}  Rb5 {[%clk 0:00:04]} 40. Qe6+ {[%clk 0:00:06]}  Kh8 {[%clk 0:00:05]} 41. Re2 {[%clk 0:00:07]}  Rb8 {[%clk 0:00:03]} 42. f6 {[%clk 0:00:05]}  gxf6 {[%clk 0:00:03]} 43. Rf2 {[%clk 0:00:05]}  Kg7 {[%clk 0:00:02]} 44. Rg2+ {[%clk 0:00:05]}  Kh8 {[%clk 0:00:02]} 45. Qf7 {[%clk 0:00:06]}  Rb7 {[%clk 0:00:01]} 46. Qxb7 {[%clk 0:00:04]}  Qd5+ {[%clk 0:00:01]} 47. Kc3 {[%clk 0:00:04]}  Qxg2 {[%clk 0:00:02]} 48. Qc8+ {[%clk 0:00:05]}  Kg7 {[%clk 0:00:01]} 49. Qd7+ {[%clk 0:00:05]}  Kh6 {[%clk 0:00:01]} 50. a4 {[%clk 0:00:06]}  Qxh2 {[%clk 0:00:01]} 51. Qxc6 {[%clk 0:00:06]}  Qh4 {[%clk 0:00:01]} 52. Qc4 {[%clk 0:00:06]}  Qg5 {[%clk 0:00:00]} 53. Qb5 {[%clk 0:00:06]} 1-0


[Site "https://www.chess.com"]

[Event "Titled Tuesday Blitz June 27 Early 2023"]
[White "Yuan, Qingyu"]
[Black "chess123456s"]
[WhiteFideId "8609772"]
[WhiteElo "2716"]
[BlackElo "2569"]
[Result "0-1"]
[Round "11"]
[TimeControl "180+2"]
[Date "2023.06.27"]
[WhiteClock "0:00:00"]
[BlackClock "0:00:47"]
[Board "39"]

1. e4 {[%clk 0:03:00]}  e5 {[%clk 0:02:59]} 2. Nf3 {[%clk 0:03:01]}  Nc6 {[%clk 0:02:56]} 3. Bb5 {[%clk 0:03:00]}  a6 {[%clk 0:02:56]} 4. Ba4 {[%clk 0:03:01]}  Nf6 {[%clk 0:02:56]} 5. d3 {[%clk 0:03:01]}  b5 {[%clk 0:02:55]} 6. Bb3 {[%clk 0:03:01]}  Bc5 {[%clk 0:02:56]} 7. Nc3 {[%clk 0:03:02]}  h6 {[%clk 0:02:56]} 8. Nd5 {[%clk 0:03:02]}  d6 {[%clk 0:02:56]} 9. c3 {[%clk 0:03:02]}  Rb8 {[%clk 0:02:57]} 10. Be3 {[%clk 0:02:58]}  Bxe3 {[%clk 0:02:54]} 11. fxe3 {[%clk 0:02:55]}  Nxd5 {[%clk 0:02:53]} 12. Bxd5 {[%clk 0:02:51]}  Ne7 {[%clk 0:02:54]} 13. Bb3 {[%clk 0:02:50]}  Ng6 {[%clk 0:02:53]} 14. O-O {[%clk 0:02:47]}  O-O {[%clk 0:02:53]} 15. a4 {[%clk 0:02:46]}  Qe7 {[%clk 0:02:44]} 16. axb5 {[%clk 0:02:45]}  axb5 {[%clk 0:02:45]} 17. Qe1 {[%clk 0:02:38]}  Be6 {[%clk 0:02:40]} 18. Bxe6 {[%clk 0:02:25]}  Qxe6 {[%clk 0:02:41]} 19. b4 {[%clk 0:02:23]}  c5 {[%clk 0:02:36]} 20. Ra6 {[%clk 0:02:17]}  cxb4 {[%clk 0:02:32]} 21. cxb4 {[%clk 0:02:17]}  Rfd8 {[%clk 0:02:31]} 22. Qd2 {[%clk 0:02:11]}  Qb3 {[%clk 0:02:24]} 23. Rc1 {[%clk 0:02:03]}  Rbc8 {[%clk 0:02:20]} 24. Rac6 {[%clk 0:01:46]}  Rxc6 {[%clk 0:01:52]} 25. Rxc6 {[%clk 0:01:47]}  Ra8 {[%clk 0:01:53]} 26. h3 {[%clk 0:00:42]}  Ra2 {[%clk 0:01:47]} 27. Rc3 {[%clk 0:00:34]}  Qb1+ {[%clk 0:01:35]} 28. Qe1 {[%clk 0:00:25]}  Qb2 {[%clk 0:01:21]} 29. Rc8+ {[%clk 0:00:25]}  Kh7 {[%clk 0:01:22]} 30. Qg3 {[%clk 0:00:26]}  Qe2 {[%clk 0:01:10]} 31. Kh2 {[%clk 0:00:19]}  Qxe3 {[%clk 0:01:07]} 32. Rc7 {[%clk 0:00:13]}  Qf4 {[%clk 0:01:04]} 33. Rd7 {[%clk 0:00:04]}  Qxg3+ {[%clk 0:01:02]} 34. Kxg3 {[%clk 0:00:05]}  Nf4 {[%clk 0:01:03]} 35. Nh4 {[%clk 0:00:04]}  Rd2 {[%clk 0:00:55]} 36. Rxd6 {[%clk 0:00:03]}  Rxd3+ {[%clk 0:00:55]} 37. Rxd3 {[%clk 0:00:03]}  Nxd3 {[%clk 0:00:56]} 38. Nf3 {[%clk 0:00:03]}  f6 {[%clk 0:00:56]} 39. Kg4 {[%clk 0:00:04]}  g6 {[%clk 0:00:54]} 40. Nd2 {[%clk 0:00:04]}  Nxb4 {[%clk 0:00:54]} 41. Nb3 {[%clk 0:00:03]}  Nc6 {[%clk 0:00:53]} 42. Nc5 {[%clk 0:00:03]}  b4 {[%clk 0:00:53]} 43. Kf3 {[%clk 0:00:03]}  Kg7 {[%clk 0:00:46]} 44. Ke3 {[%clk 0:00:02]}  Nd4 {[%clk 0:00:45]} 45. Kd3 {[%clk 0:00:01]}  Kf7 {[%clk 0:00:45]} 46. Kc4 {[%clk 0:00:02]}  b3 {[%clk 0:00:46]} 47. Nxb3 {[%clk 0:00:02]}  Nxb3 {[%clk 0:00:47]} 48. Kxb3 {[%clk 0:00:03]}  Ke6 {[%clk 0:00:46]} 49. Kc4 {[%clk 0:00:03]}  f5 {[%clk 0:00:46]} 50. Kd3 {[%clk 0:00:04]}  fxe4+ {[%clk 0:00:40]} 51. Kxe4 {[%clk 0:00:05]}  Kd6 {[%clk 0:00:41]} 52. Ke3 {[%clk 0:00:05]}  Kd5 {[%clk 0:00:41]} 53. Kd3 {[%clk 0:00:05]}  e4+ {[%clk 0:00:42]} 54. Ke3 {[%clk 0:00:06]}  Ke5 {[%clk 0:00:43]} 55. Ke2 {[%clk 0:00:07]}  Kf4 {[%clk 0:00:43]} 56. Kf2 {[%clk 0:00:07]}  g5 {[%clk 0:00:41]} 57. g3+ {[%clk 0:00:08]}  Ke5 {[%clk 0:00:42]} 58. Ke3 {[%clk 0:00:09]}  Kd5 {[%clk 0:00:42]} 59. Ke2 {[%clk 0:00:09]}  Kd4 {[%clk 0:00:43]} 60. Kd2 {[%clk 0:00:10]}  e3+ {[%clk 0:00:43]} 61. Kd1 {[%clk 0:00:10]}  Ke4 {[%clk 0:00:44]} 62. Ke2 {[%clk 0:00:10]}  h5 {[%clk 0:00:44]} 63. h4 {[%clk 0:00:09]}  g4 {[%clk 0:00:44]} 64. Kf1 {[%clk 0:00:09]}  Kf3 {[%clk 0:00:45]} 65. Kg1 {[%clk 0:00:09]}  e2 {[%clk 0:00:46]} 66. Kh2 {[%clk 0:00:09]}  Kf2 {[%clk 0:00:46]} 67. Kh1 {[%clk 0:00:00]}  e1=Q+ {[%clk 0:00:47]} 0-1


[Site "https://www.chess.com"]